[Event "37th ECCC 2022"]
[Site "Mayrhofen"]
[Date "2022.10.06"]
[Round "4.25"]
[White "Maghsoodloo, Parham"]
[Black "Pechac, Jergus"]
[Result "1-0"]
[ECO "D02"]
[WhiteElo "2721"]
[BlackElo "2633"]
[Annotator "TA"]
[PlyCount "133"]
[EventDate "2022.10.03"]
[EventType "team-tourn"]
[EventCountry "AUT"]
[SourceTitle "playchess.com"]
[Source "ChessBase"]
[SourceQuality "1"]
[TimeControl "40/5400+30:1800+30"]

{[%evp 9,133,3,16,10,20,11,18,16,41,0,0,0,0,0,0,0,0,-9,0,0,11,0,0,0,0,0,10,0,14,7,37,31,33,33,41,39,78,78,60,59,55,33,33,35,35,35,41,50,95,75,78,71,102,104,104,101,138,141,201,195,1193,1182,1089,241,241,241,241,233,232,232,230,133,151,144,144,144,144,144,167,151,186,186,179,179,179,145,172,123,123,131,662,449,1037,700,11075,11158,10062,9717,10062,10062,9835,9741,8899,6041,3170,1508,7764,872,6618,5287,10481,6255,29978,29979,29978,29976,29976,29975,29978,29979,29990,29991,29993,29994,29997,29994]} 1. d4 {[%emt 0:00:16]} d5 {[%emt 0:00:06]} 2. Nf3 {[%emt 0:00:22]} Nf6 {[%emt 0:00:06]} 3. Bf4 {[%emt 0:00:06]} c5 {[%emt 0:00:16]} 4. e3 {[%emt 0:00:11]} Nc6 {[%emt 0:00:25]} 5. Nbd2 {[%emt 0:00:05]} cxd4 {[%emt 0:01:52]} 6. exd4 {[%emt 0:00:06] D02: 1 d4 d5 2 Nf3 sidelines, including 2...Nf6 3 g3 and 2...Nf6 3 Bf4.} Bf5 {[%emt 0:00:08]} 7. c3 {[%emt 0:08:30]} e6 {[%emt 0:00:08]} 8. Qb3 {[%emt 0:02:41] The position is equal.} Bd6 {[%emt 0:00:08] is currently scoring better than 8...Qc8.} 9. Bxd6 {[%emt 0:06:28]} Qxd6 {[%emt 0:02:14]} 10. Be2 {[%emt 0:00:52]} O-O {[%emt 0:00:15][%cal Ob7b5]} 11. O-O {[%emt 0:00:03]} h6 {[%emt 0:01:10]} 12. Rfe1 {[%emt 0:00:46]} Qc7 {[%emt 0:05:43]} 13. a4 {[%emt 0:00:09]} a6 {[%emt 0:01:59] [#]} 14. Qa3 $146 {[%emt 0:02:15]} ({Predecessor:} 14. Qd1 Rac8 15. Rc1 Rfd8 16. Bf1 Qb6 17. Qb3 Qxb3 18. Nxb3 Ne4 19. h4 Nd6 20. g3 {½-½ (40) Yarmolyuk,Y (2245)-Dard,M (2321) LSS email 2017}) 14... Nd7 {[%emt 0:03:19]} 15. a5 {[%emt 0:01:29]} Rfe8 {[%emt 0:00:36]} 16. h3 {[%emt 0:04:35]} Bg6 {[%emt 0:03:59]} 17. Bf1 {[%emt 0:05:12]} Bh5 {[%emt 0:03:34]} 18. Re3 {[%emt 0:03:35]} Bxf3 {[%emt 0:03:07]} 19. Nxf3 {[%emt 0:00:26]} e5 {[%emt 0:00:05]} 20. dxe5 {[%emt 0:00:46]} (20. Nxe5 {looks sharper.} Ndxe5 21. dxe5 Nxe5 22. Qa2) 20... Ndxe5 {[%emt 0:00:23]} 21. Nxe5 {[%emt 0:04:39]} Rxe5 {[%emt 0:01:49]} 22. Rxe5 {[%emt 0:00:10]} Qxe5 {[%emt 0:00:46]} 23. Qc5 {[%emt 0:04:15]} Rc8 {[%emt 0:14:40]} 24. Rd1 {[%emt 0:01:28]} Ne7 {[%emt 0:00:13]} 25. Qa3 {[%emt 0:08:57]} Nc6 {[%emt 0:01:30]} 26. g3 {[%emt 0:14:24]} d4 {[%emt 0:02:41]} 27. cxd4 {[%emt 0:02:46][%cal Bc3d4,Bd4d5,Bd5d6][%mdl 32]} Qxa5 {[%emt 0:00:25]} 28. Qf3 {[%emt 0:00:33]} Re8 {[%emt 0:10:38]} 29. d5 $1 {[%emt 0:01:57]} Ne5 {[%emt 0:00:51]} 30. Qe3 {[%emt 0:08:08]} Qa4 {[%emt 0:01:12]} 31. b3 $1 {[%emt 0:01:16]} Qd7 {[%emt 0:00:15][%cal Oe5c4]} 32. d6 {[%emt 0:01:12]} Re6 {[%emt 0:18:06]} 33. Qb6 {[%emt 0:02:47] White is more active.} Nf3+ {[%emt 0:11:28]} (33... Re8 $16 34. Bg2 Nc6 35. Bxc6 bxc6 36. Qxa6 Rd8) 34. Kh1 $18 {[%emt 0:01:04] Hoping for Qc7.} Re1 $2 {[%emt 0:03:26]} (34... Re8 35. Bg2 Ng5 36. Qxb7 Qxb7 37. Bxb7 Nxh3) 35. Rxe1 {[%emt 0:00:47]} Nxe1 {[%emt 0:00:03][%mdl 4096] Endgame KQB-KQN} 36. g4 $2 {[%emt 0:08:21]} (36. Qc7 Qf5 37. Qxb7 Qxf2 38. Bc4) 36... Kf8 {[%emt 0:02:00]} 37. Qc7 {[%emt 0:03:03]} Ke8 {[%emt 0:03:27] And now ...Qxc7 would win.} 38. Qb8+ {[%emt 0:00:55]} Qd8 {[%emt 0:00:03]} 39. Qxb7 {[%emt 0:00:42]} Qxd6 {[%emt 0:00:02]} 40. Qe4+ {[%emt 0:00:28]} ({Better is} 40. Bxa6 $18 {Bc4 is the strong threat.} Kd8 41. Qa8+ Ke7 42. Qb7+ Kf8 43. Qa8+ Ke7 44. Bc4) 40... Qe7 {[%emt 0:00:49]} 41. Qa8+ {[%emt 0:33:13]} Qd8 {[%emt 0:31:01]} 42. Qxd8+ {[%emt 0:00:25]} ({But not} 42. Qxa6 $6 Qd5+ 43. Kh2 Qe5+ 44. Kh1 Qd5+ 45. Kh2 Qe5+ 46. Kh1 Qd5+ $11) 42... Kxd8 {[%emt 0:00:02]} 43. Bxa6 $16 {[%emt 0:00:01] KB-KN} Kc7 {[%emt 0:00:50]} 44. f4 {[%emt 0:01:07]} Kb6 {[%emt 0:03:50]} 45. Bc4 {[%emt 0:00:00]} f6 {[%emt 0:00:00] [#]} 46. Kg1 $1 {[%emt 0:00:00]} Kc5 {[%emt 0:00:00]} 47. Kf2 {[%emt 0:00:00]} Nc2 {[%emt 0:00:00]} 48. Kf3 {[%emt 0:00:00]} Kd4 {[%emt 0:00:00]} 49. g5 {[%emt 0:00:00]} fxg5 {[%emt 0:00:00][%mdl 8192] This costs Black the game.} (49... hxg5 $16 50. fxg5 Ke5) 50. fxg5 $18 {[%emt 0:00:00]} Ke5 {[%emt 0:00:00]} (50... Ne3 $142 51. gxh6 gxh6) 51. Kg4 {[%emt 0:00:00]} Ne3+ {[%emt 0:00:00] [#]} 52. Kh5 $1 {[%emt 0:00:00]} Ng2 {[%emt 0:00:00]} 53. gxh6 {[%emt 0:00:00]} Nf4+ {[%emt 0:00:00]} 54. Kg4 {[%emt 0:00:00]} gxh6 {[%emt 0:00:00]} 55. Bf1 {[%emt 0:00:00]} Nd5 {[%emt 0:00:00]} 56. Kh5 {[%emt 0:00:00]} Ne3 {[%emt 0:00:00]} 57. Bc4 {[%emt 0:00:00]} (57. Bd3 $142 Ng2 58. Kxh6) 57... Nf5 {[%emt 0:00:00]} 58. Bd3 {[%emt 0:00:00] White threatens Bxf5 and mate.} Nd4 {[%emt 0:03:56]} 59. b4 {[%emt 0:00:00]} Kf4 {[%emt 0:00:25]} 60. b5 {[%emt 0:00:00] White wants to mate with b6.} Kg3 {[%emt 0:00:29]} 61. b6 {[%emt 0:00:00] White mates.} Nc6 {[%emt 0:00:39]} 62. Bf1 {[%emt 0:00:20]} Na5 {[%emt 0:00:42]} 63. Kxh6 {[%emt 0:00:11]} Kh4 {[%emt 0:00:07]} 64. Bg2 {[%emt 0:00:23]} Nc4 {[%emt 0:00:47]} 65. b7 {[%emt 0:00:19]} Ne5 {[%emt 0:00:14]} 66. b8=Q {[%emt 0:00:42]} Ng6 {[%emt 0:00:05]} 67. Qd8+ {[%emt 0:00:17] Weighted Error Value: White=0.18 (very precise) /Black=0.38} 1-0

[Event "37th ECCC 2022"]
[Site "Mayrhofen"]
[Date "2022.10.06"]
[Round "4.26"]
[White "Banusz, Tamas"]
[Black "Van Foreest, Jorden"]
[Result "1/2-1/2"]
[ECO "A05"]
[WhiteElo "2622"]
[BlackElo "2694"]
[Annotator "TA"]
[PlyCount "73"]
[EventDate "2022.10.03"]
[EventType "team-tourn"]
[EventCountry "AUT"]
[SourceTitle "playchess.com"]
[Source "ChessBase"]
[SourceQuality "1"]
[TimeControl "40/5400+30:1800+30"]

{[%evp 11,73,15,27,25,29,30,29,17,36,0,2,0,0,0,10,0,0,0,19,2,20,20,24,18,25,23,25,25,18,16,15,4,6,1,18,0,0,0,0,0,0,0,0,0,0,0,0,0,8,8,8,8,8,8,8,8,8,8,8,8,8,0,0,0]} 1. Nf3 Nf6 {[%emt 0:00:44]} 2. g3 {[%emt 0:00:11]} g6 {[%emt 0:00:07]} 3. Bg2 {[%emt 0:00:07]} Bg7 {[%emt 0:00:09]} 4. d4 {[%emt 0:00:25][%cal Bd2d4,Bd4d5][%mdl 32]} O-O {[%emt 0:00:36]} 5. c4 {[%emt 0:00:07]} d6 {[%emt 0:00:24]} 6. Nc3 {[%emt 0:00:08]} Re8 {[%emt 0:00:22]} 7. O-O {[%emt 0:00:41] E62: King's Indian: Fianchetto: 6...c6 and Panno Variation (6...Nc6) without ...a6.} Bd7 {[%emt 0:00:07] [#]} 8. d5 $146 {[%emt 0:05:51]} ({Predecessor:} 8. b3 e5 9. dxe5 dxe5 10. Ng5 Bc6 11. Qxd8 Rxd8 12. Nge4 Nxe4 13. Nxe4 Nd7 14. Ba3 f5 15. Ng5 Bxg2 16. Kxg2 Re8 17. Rad1 Nf6 {½-½ (17) Ribli,Z (2569)-Kempinski,R (2528) Germany 2000}) 8... a5 {[%emt 0:02:13]} 9. Nd4 {[%emt 0:00:29] White has an edge.} Na6 {[%emt 0:01:37]} 10. h3 {[%emt 0:01:43]} Nc5 {[%emt 0:02:04]} 11. Be3 {[%emt 0:01:58]} e5 {[%emt 0:04:22]} 12. dxe6 {[%emt 0:00:58]} Nxe6 {[%emt 0:02:13]} 13. Nxe6 {[%emt 0:08:06]} (13. Bxb7 {is interesting.} Nxd4 14. Bxa8 Qxa8 15. Bxd4 Bxh3 16. f3) 13... Bxe6 {[%emt 0:00:48]} 14. b3 {[%emt 0:01:12]} Qc8 {[%emt 0:06:16]} 15. h4 {[%emt 0:11:25]} Bh3 {[%emt 0:04:26][%cal Oe8e3]} 16. Bd4 {[%emt 0:00:44]} Bxg2 {[%emt 0:07:12]} 17. Kxg2 {[%emt 0:00:11]} Qf5 {[%emt 0:00:21]} 18. e3 {[%emt 0:04:59]} Rad8 {[%emt 0:08:24]} 19. Qf3 {[%emt 0:03:10]} Qxf3+ {[%emt 0:00:32]} 20. Kxf3 {[%emt 0:00:02] The position is equal.} d5 {[%emt 0:03:24]} 21. Rad1 {[%emt 0:10:55] With the idea cxd5.} dxc4 {[%emt 0:00:39]} 22. bxc4 {[%emt 0:00:37]} Nd7 {[%emt 0:00:55][%cal Bf6d7,Bd7b6,Bb6d5][%mdl 32]} 23. Nb5 {[%emt 0:06:41]} Bxd4 {[%emt 0:08:28]} 24. exd4 {[%emt 0:01:12]} Nb6 {[%emt 0:00:11]} 25. c5 {[%emt 0:07:10]} Nd5 {[%emt 0:00:09]} 26. Rfe1 {[%emt 0:00:25]} Kf8 {[%emt 0:00:33]} 27. Rxe8+ {[%emt 0:08:34]} Rxe8 $11 {[%emt 0:00:19][%mdl 4096] Endgame KRN-KRN} 28. Rc1 {[%emt 0:01:10]} f5 {[%emt 0:03:40]} 29. Nc3 {[%emt 0:01:16]} Nxc3 {[%emt 0:01:04]} 30. Rxc3 {[%emt 0:00:02] KR-KR} Re4 {[%emt 0:00:07]} 31. Rb3 {[%emt 0:01:38]} b6 {[%emt 0:00:03]} 32. cxb6 {[%emt 0:02:20]} cxb6 {[%emt 0:00:04]} 33. d5 {[%emt 0:00:06]} Rd4 {[%emt 0:00:05]} 34. Rxb6 {[%emt 0:00:29] next Rb5 is good for White.} Rxd5 {[%emt 0:00:05]} 35. Rb7 {[%emt 0:00:27]} Rd2 {[%emt 0:00:33]} 36. Rxh7 {[%emt 0:01:08] And now h5 would win.} Kg8 {[%emt 0:00:41]} 37. Ra7 {[%emt 0:04:49] An even fight not without its subleties.  Weighted Error Value: White=0.03 (flawless) /Black=0.04 (flawless)} 1/2-1/2

[Event "37th ECCC 2022"]
[Site "Mayrhofen"]
[Date "2022.10.06"]
[Round "4.27"]
[White "Amin, Bassem"]
[Black "Michalik, Peter"]
[Result "1-0"]
[ECO "A06"]
[WhiteElo "2667"]
[BlackElo "2558"]
[Annotator "TA"]
[PlyCount "85"]
[EventDate "2022.10.03"]
[EventType "team-tourn"]
[EventCountry "AUT"]
[SourceTitle "playchess.com"]
[Source "ChessBase"]
[SourceQuality "1"]
[TimeControl "40/5400+30:1800+30"]

{[%evp 16,85,0,0,14,18,68,74,79,89,110,107,108,96,120,97,102,110,104,90,114,99,109,64,71,69,67,83,83,62,68,72,70,41,36,41,52,32,77,72,72,79,73,82,80,87,87,56,91,83,71,77,411,410,404,397,569,561,544,497,502,291,256,261,455,216,226,246,249,264,765,751]} 1. Nf3 {[%emt 0:01:07]} d5 {[%emt 0:00:48]} 2. g3 {[%emt 0:00:06]} g6 {[%emt 0:01:32]} 3. Bg2 {[%emt 0:04:48]} Bg7 {[%emt 0:00:08]} 4. O-O {[%emt 0:00:05]} c5 {[%emt 0:01:35]} 5. d3 {[%emt 0:01:35][%cal Bd2d3,Bd3e4,Be4e5][%mdl 32]} Nf6 {[%emt 0:04:09]} 6. Nbd2 {[%emt 0:00:55]} O-O {[%emt 0:01:05]} 7. e4 {[%emt 0:00:05]} Nc6 {[%emt 0:03:14]} 8. c3 {[%emt 0:01:20]} dxe4 {[%emt 0:00:29]} 9. dxe4 {[%emt 0:00:26]} Nd7 {[%emt 0:00:42] A08: King's Indian Attack.} 10. Qe2 {[%emt 0:03:50]} b6 {[%emt 0:03:43]} (10... Qc7 $11) 11. e5 $14 {[%emt 0:02:46] [#]} e6 $146 {[%emt 0:00:56] White is better.} ({Predecessor:} 11... Qc7 12. e6 fxe6 13. Qxe6+ Kh8 14. Ng5 Nde5 15. Qd5 Rd8 16. Qb3 Na5 17. Qa4 c4 18. Bxa8 {0-1 (66) Hein,A-Reinemer,F Wittlich 1990}) 12. Ne4 {[%emt 0:03:01]} (12. Nd4 $6 cxd4 13. Bxc6 dxc3 $1 14. Bxa8 (14. bxc3 Rb8 $11) 14... cxd2 15. Qxd2 (15. Bxd2 Nc5 $11) 15... Ba6 $11) 12... Qc7 {[%emt 0:13:03]} 13. Bf4 {[%emt 0:01:27][%cal Oe4f6]} Bb7 {[%emt 0:03:54][%cal Rd7e5]} 14. Nd6 {[%emt 0:13:09]} h6 {[%emt 0:08:03]} 15. h4 {[%emt 0:06:41][%cal Oh4h5]} Rad8 {[%emt 0:00:34]} 16. Nxb7 {[%emt 0:13:16] White has more active pieces.} Qxb7 {[%emt 0:00:07]} 17. Rad1 {[%emt 0:00:19]} Qc7 {[%emt 0:12:00]} 18. Rfe1 {[%emt 0:03:44]} Ndb8 {[%emt 0:01:13]} 19. Nh2 {[%emt 0:08:29] Hoping for Ng4.} Rxd1 {[%emt 0:01:31]} 20. Rxd1 {[%emt 0:00:18]} h5 {[%emt 0:03:42][%cal Rg7e5] Against Ng4} 21. Re1 {[%emt 0:03:38]} Nd7 {[%emt 0:07:35][%cal Rc6e5]} 22. Nf3 {[%emt 0:00:08]} (22. Bxc6 {with more complications.} Qxc6 23. g4 f6 24. gxh5 gxh5 25. exf6 Rxf6 26. Bg5) 22... Rd8 {[%emt 0:01:21]} 23. a4 {[%emt 0:02:00]} Nf8 {[%emt 0:01:54]} 24. g4 {[%emt 0:03:12]} hxg4 {[%emt 0:00:28]} 25. Nh2 {[%emt 0:00:05][%cal Bf3h2,Bh2g4,Bg4f6][%mdl 32]} Ne7 {[%emt 0:05:13]} 26. Nxg4 {[%emt 0:00:19]} Qd7 {[%emt 0:00:41]} 27. Be4 {[%emt 0:02:10]} Nh7 {[%emt 0:02:23]} 28. Bc2 {[%emt 0:02:28]} Nf5 {[%emt 0:03:10] [#]} 29. h5 $1 {[%emt 0:00:26]} Qe7 {[%emt 0:02:42]} 30. hxg6 {[%emt 0:01:36]} fxg6 {[%emt 0:01:35]} 31. Nf6+ {[%emt 0:03:09]} Kh8 {[%emt 0:01:58]} 32. Kg2 {[%emt 0:04:13][%cal Bg1g2,Bg2h3,Bh3h4,Bh4g4,Bg4f3][%mdl 32]} Nh4+ {[%emt 0:03:42]} 33. Kh3 {[%emt 0:06:50]} Nxf6 {[%emt 0:02:50][%mdl 8192] A mistake that costs the game.} (33... Bxf6 $2 34. exf6 Qf7 35. Qxe6 Qxe6+ 36. Rxe6 $18) (33... Nf5 $16) 34. Bg5 $18 {[%emt 0:00:54][%mdl 64] Pin. This bishop pair is nice.} Qf8 {[%emt 0:06:44][%cal Of6h5]} (34... Nf5 $2 35. Bxf5 exf5 36. exf6 Qxe2 37. fxg7+ (37. Rxe2 Bf8 $16) 37... Kxg7 38. Rxe2) 35. Kxh4 {[%emt 0:02:03]} (35. exf6 Bxf6 36. Bxh4 Bxh4 $18) (35. Bxh4 Nh5 36. Qe4 Rd2 $14) 35... Nh5 {[%emt 0:01:16]} (35... Rd5 $142 36. Bb3 (36. Bxf6 Bxf6+ 37. Kg3 Rxe5 $15) (36. Bxg6 Nh7 $16) 36... Ne4 37. Qxe4 Rxe5) 36. Bxd8 {[%emt 0:06:37]} Qxd8+ {[%emt 0:00:06]} 37. Kg4 {[%emt 0:00:02]} Bh6 {[%emt 0:00:11]} 38. Rh1 {[%emt 0:01:25] And now Qe4 would win.} (38. Qd3 Qg5+ 39. Kf3 Nf4 $11) 38... Qg5+ {[%emt 0:02:16]} 39. Kf3 {[%emt 0:00:02]} Nf4 $2 {[%emt 0:00:40]} (39... Qf4+ {keeps fighting.} 40. Kg2 Qg5+ 41. Kf1 Qc1+ 42. Bd1 Nf4) 40. Qf1 {[%emt 0:01:09]} (40. Qe4 $142) 40... Kg7 {[%emt 0:00:45]} 41. Be4 {[%emt 0:03:33]} c4 {[%emt 0:11:34]} 42. Qg1 {[%emt 0:05:09] aiming for Qxg5.} (42. Qxc4 Qg2+ 43. Ke3 Nh3+ 44. Kd3 Nxf2+ 45. Kc2 Nxe4+ 46. Kb3 Nd2+ 47. Kb4 a5+ 48. Kb5 Nxc4 49. Re1 Qd5+ 50. Ka6 Qc6 51. Ka7 Qc7+ 52. Ka6 b5 53. Kxb5 Qb7+ 54. Kxc4 Qd5#) 42... Ng2 $2 {[%emt 0:00:31]} (42... Qxe5 43. Qh2 Qh5+ 44. Qxh5 gxh5) 43. Qh2 {[%emt 0:01:01] Weighted Error Value: White=0.17 (very precise) /Black=0.36} ({Not} 43. Qxg2 Qf4+ 44. Ke2 Qd2+ 45. Kf3 Qf4+ 46. Ke2 Qd2+ 47. Kf3 Qf4+ $11) 1-0

[Event "37th ECCC 2022"]
[Site "Mayrhofen"]
[Date "2022.10.06"]
[Round "4.28"]
[White "Prohaszka, Peter"]
[Black "Vocaturo, Daniele"]
[Result "0-1"]
[ECO "A06"]
[WhiteElo "2570"]
[BlackElo "2615"]
[Annotator "TA"]
[PlyCount "138"]
[EventDate "2022.10.03"]
[EventType "team-tourn"]
[EventCountry "AUT"]
[SourceTitle "playchess.com"]
[Source "ChessBase"]
[SourceQuality "1"]
[TimeControl "40/5400+30:1800+30"]

{[%evp 23,138,0,0,0,0,0,10,9,37,40,56,51,100,101,92,94,161,47,77,79,78,79,69,72,50,0,112,119,934,12,17,13,44,27,122,117,116,111,108,129,113,104,116,72,103,81,135,75,75,-544,-533,-533,-530,-522,-524,-505,-464,-451,-441,-547,-523,-650,-457,-745,-693,-806,-314,-314,-314,-314,-314,-314,-314,-672,-314,-314,-314,-314,-314,-314,-314,-314,-314,-314,-314,-314,-314,-314,-314,-314,-314,-314,-314,-580,-314,-314,-314,-314,-314,-314,-314,-5072,-3259,-29938,-12835,-29981,-29982,-29987,-29988,-29988,-29989,-29989,-29990,-29990,-29991,-29991,-29992]} 1. Nf3 {[%emt 0:00:03]} d5 {[%emt 0:00:41]} 2. e3 {[%emt 0:00:46]} Nf6 {[%emt 0:03:29]} 3. c4 {[%emt 0:02:53]} e6 {[%emt 0:01:55]} 4. Nc3 {[%emt 0:01:02]} c5 {[%emt 0:03:07]} 5. d4 {[%emt 0:02:07]} Nc6 {[%emt 0:01:19]} 6. cxd5 {[%emt 0:07:02]} exd5 {[%emt 0:01:55]} 7. Be2 {[%emt 0:01:48]} Bd6 {[%emt 0:05:36]} 8. dxc5 {[%emt 0:10:36]} Bxc5 {[%emt 0:00:07]} 9. O-O {[%emt 0:00:04]} O-O {[%emt 0:03:00]} 10. b3 {[%emt 0:00:29]} a6 {[%emt 0:02:36]} 11. Bb2 {[%emt 0:01:14]} Ba7 {[%emt 0:00:30]} 12. Rc1 {[%emt 0:03:24]} Re8 {[%emt 0:03:55]} 13. h3 {[%emt 0:13:10] D32: Tarrasch Defence: Sidelines and lines without g3.} Bf5 {[%emt 0:11:52]} 14. Bd3 {[%emt 0:09:54]} Be4 {[%emt 0:05:13]} 15. Bb1 {[%emt 0:10:13] [#] The position is equal.} (15. Nxe4 dxe4 16. Bxa6 (16. Bxf6 $2 Qxf6 17. Bc4 exf3 $19) 16... exf3 17. Bxb7 fxg2 18. Kxg2 Ne5 $17) 15... Bxf3 $146 {[%emt 0:14:43]} ({Predecessor:} 15... Bxb1 16. Nxb1 Ne4 17. Nc3 Qa5 18. a3 Rad8 19. Ne2 Qc7 20. Ned4 Bb8 {1-0 (43) Aleksandrov,A (2612)-Naumkin,I (2443) Moscow 2012}) 16. Qxf3 {[%emt 0:00:25]} d4 {[%emt 0:00:06][%cal Rd4e3]} 17. Ne4 {[%emt 0:11:33]} Nxe4 {[%emt 0:19:11]} (17... Qe7 $14 18. Nxf6+ Qxf6) 18. Bxe4 $16 {[%emt 0:00:02] This bishop pair is nice.} dxe3 {[%emt 0:00:08]} 19. fxe3 {[%emt 0:00:51]} Qe7 {[%emt 0:00:07]} (19... f6 $16 {was worth a try.}) 20. Bxc6 {[%emt 0:05:17]} (20. Rc4 $18 Ne5 21. Bxe5 Qxe5 22. Qxf7+ Kh8 23. Bxb7 (23. Qxb7 Bxe3+ 24. Kh1 Rad8 $16) 23... Bxe3+ 24. Kh1) 20... bxc6 {[%emt 0:02:23]} 21. Kh1 $1 {[%emt 0:00:05]} (21. Rxc6 $6 Qxe3+ 22. Kh1 Qxf3 23. gxf3 Re2 $11) 21... f6 {[%emt 0:01:00]} 22. Rxc6 {[%emt 0:01:20]} (22. Qxc6 Bxe3 23. Rce1 Qd8 $11) 22... Bxe3 {[%emt 0:02:40]} 23. Qg3 {[%emt 0:09:20] Rc7 is the strong threat.} (23. Bxf6 gxf6 24. Rxf6 Qe4 25. Qxe4 (25. Qh5 Kh8 $17) 25... Rxe4 $17) 23... Bg5 {[%emt 0:00:28] [#]} 24. Rc7 {[%emt 0:01:16]} (24. Bxf6 $1 $14 gxf6 25. h4) 24... Qe3 {[%emt 0:00:32]} (24... Bh4 $1 $11 25. Qf4 (25. Rxe7 Bxg3 26. Rxe8+ Rxe8 $15) 25... Qe4) 25. Qg4 {[%emt 0:00:57][%cal Oc7g7]} Kh8 {[%emt 0:03:21][%mdl 8192] [#]} (25... Re6 $16) 26. Bc1 $2 {[%emt 0:03:52]} (26. Qd7 Rg8 $11) (26. Rxg7 $1 $18 {[%mdl 512]} Kxg7 27. Rxf6) 26... Qe5 $11 {[%emt 0:01:32]} 27. Bf4 $40 {[%emt 0:01:08][%mdl 128] White mounts an attack.} Qb5 {[%emt 0:00:05]} 28. Rfc1 {[%emt 0:00:25]} h6 {[%emt 0:01:55]} (28... Qb4 $11 {remains equal.} 29. R1c4 (29. Bxg5 Qxg4 30. hxg4 fxg5 $11) 29... Qe1+ 30. Kh2 h6) 29. h4 $16 {[%emt 0:01:54]} f5 {[%emt 0:01:49]} 30. Qg3 {[%emt 0:00:09]} Bf6 {[%emt 0:00:06] [#]} 31. Bxh6 $1 {[%emt 0:01:19][%mdl 512]} Qe5 {[%emt 0:01:17]} (31... gxh6 {leads to mate.} 32. Qg6 Be7 33. Qxh6+ Kg8 34. R1c6) 32. Bf4 {[%emt 0:00:34]} Qe2 {[%emt 0:00:16]} 33. Qg6 {[%emt 0:01:12] Against Qh5} Rad8 {[%emt 0:00:54][%cal Ba8d8,Bd8d3,Bd3h3][%mdl 32]} 34. R7c2 {[%emt 0:00:34]} Qe4 {[%emt 0:00:41]} (34... Qg4 $142 35. Qxg4 fxg4) 35. Qh5+ {[%emt 0:00:24]} ({White should try} 35. Rc4 Rd4 36. Rc5) 35... Kg8 {[%emt 0:00:17]} 36. Bg5 {[%emt 0:00:20][%mdl 8192] [#]} (36. Rc4 $16 {stays on course.} Qe2 37. Qxf5) 36... Rd3 $1 $19 {[%emt 0:00:30] Active counter play!} 37. Kg1 {[%emt 0:00:47]} Bd4+ {[%emt 0:00:45]} 38. Kf1 {[%emt 0:00:30] [#] Threatens to win with Rc8.} Rh3 $3 {[%emt 0:00:41][%cal Rh3h1][%mdl 512]} 39. Qxe8+ {[%emt 0:00:26]} Qxe8 {[%emt 0:00:05][%cal Rh3h1]} 40. gxh3 {[%emt 0:00:04] Strongly threatening Rc8.} Qe4 {[%emt 0:00:34]} 41. Rd2 {[%emt 0:17:27]} f4 {[%emt 0:04:01]} 42. Rcc2 {[%emt 0:10:08]} Be3 {[%emt 0:02:52]} 43. Rh2 {[%emt 0:02:59]} (43. Rd8+ $142 Kh7 44. Rc4 Qf3+ 45. Ke1) 43... Kh7 {[%emt 0:04:26] And now ...Bb6 would win.} 44. Rce2 {[%emt 0:00:30]} Qd3 $2 {[%emt 0:01:00]} (44... Qb1+ 45. Kg2 Qd3 46. Rxe3 fxe3 47. Bxe3 Qxe3) 45. Rhf2 {[%emt 0:01:42]} Bxf2 {[%emt 0:04:19] Chess con chili.} 46. Kxf2 {[%emt 0:00:01][%mdl 4096] Endgame KQ-KRB} Qg3+ {[%emt 0:00:06]} ({But not} 46... Qxh3 $2 47. Bxf4 Qxh4+ 48. Bg3 Qd4+ 49. Kf1 $19) 47. Kf1 {[%emt 0:00:02]} Qxh3+ {[%emt 0:00:13]} 48. Ke1 $2 {[%emt 0:00:59]} (48. Kg1) 48... Qg3+ {[%emt 0:00:40]} (48... f3 $142 49. Rd2 Qg3+ 50. Rf2 Kg6) 49. Rf2 {[%emt 0:01:09]} f3 {[%emt 0:00:15] Hoping for ...Kg6.} 50. Kf1 {[%emt 0:00:09]} Kg6 {[%emt 0:00:56]} 51. Bd2 {[%emt 0:00:35]} Qh3+ {[%emt 0:05:00]} 52. Kg1 {[%emt 0:00:07]} Qg4+ {[%emt 0:00:10]} ({Avoid the trap} 52... Qxh4 $2 53. Rxf3 Qd4+ 54. Rf2) 53. Kf1 {[%emt 0:00:07]} Qe4 {[%emt 0:00:07]} 54. Be1 {[%emt 0:00:42]} Qd3+ {[%emt 0:00:08]} 55. Kg1 {[%emt 0:00:06]} Kf5 {[%emt 0:01:39]} 56. Rd2 {[%emt 0:00:54]} Qe3+ {[%emt 0:00:05]} 57. Kf1 {[%emt 0:00:03]} Ke4 {[%emt 0:00:50]} 58. Rf2 $2 {[%emt 0:00:54]} (58. Rh2 {only move.}) 58... Qd3+ {[%emt 0:04:56]} 59. Kg1 {[%emt 0:00:01]} Qd7 {[%emt 0:01:46] aiming for ...Qg4+.} 60. Rh2 {[%emt 0:01:11]} Qg4+ {[%emt 0:01:33]} 61. Kf1 {[%emt 0:00:06]} Qh5 {[%emt 0:00:22] White must now prevent ...g5.} 62. Rd2 $2 {[%emt 0:00:43]} (62. Kg1) 62... g5 {[%emt 0:02:17][%cal Bg7g5,Bg5g4][%mdl 32]} 63. Rc2 {[%emt 0:00:52]} g4 {[%emt 0:03:24] ( -> ...Qd5)} 64. Rc4+ {[%emt 0:00:48]} Kd5 {[%emt 0:00:15] Black mates.} 65. Bg3 {[%emt 0:00:33]} Qg6 {[%emt 0:00:35]} 66. Kf2 {[%emt 0:00:42]} Qd3 {[%emt 0:00:14]} 67. Bb8 {[%emt 0:00:30]} Qe2+ {[%emt 0:00:14]} 68. Kg3 {[%emt 0:00:01]} f2 {[%emt 0:00:37]} 69. Rf4 {[%emt 0:00:35]} f1=Q {[%emt 0:00:15] Never resign too early!  Weighted Error Value: White=0.72/Black=0.44} 0-1